Cogmind - Beta 13 X1 @@@ ROGUE MODE // 2023.06.22 @ 21:44:37 Player: Decinym Result: Smashed by cave-in Performance ------------- Evolutions (0) 0 Regions Visited (2) 400 Robots Destroyed (33) 165 Value Destroyed (893) 893 Prototype IDs (1) 20 Alien Tech Used (0) 0 Bonus (0) 0 TOTAL SCORE: 1478 Bonus ------- None Cogmind --------- Core Integrity 0/250 Matter 176/300 Energy 154/280 System Corruption 8% Temperature Cool (0) Movement Treading (560) Ox5 Location -10/Subcaves Parts ------- > --- POWER (1) -------- Heavy Ion Engine > --- PROPULSION (2) --- Light Treads > --- UTILITY (2) ------ Huge Storage Unit Makeshift Kinetic Plating > --- WEAPON (2) ------- Subdweller Beam Cannon (fused) Subdweller Machine Gun > --- INVENTORY (25) --- Heavy Ion Engine Light Treads Improved Aluminum Leg Makeshift Leg Disposable Heat Sink Medium Storage Unit Huge Storage Unit Subdweller Optics Makeshift Armor Plating Scrap Shield EM Shotgun EM Shotgun Heavy Riot Gun Particle Gun Particle Gun Particle Gun Mini Grenade Launcher Scrap Shield Fragment (49) Scrap Shield Fragment (49) Scrap Shield Fragment (49) Scrap Shield Fragment (46) Peak State ------------ > --- POWER ------------ Heavy Ion Engine > --- PROPULSION ------- Subdweller Monowheel Subdweller Monowheel > --- UTILITY ---------- Huge Storage Unit Makeshift Kinetic Plating > --- WEAPON ----------- Subdweller Beam Cannon Subdweller Machine Gun > --- INVENTORY -------- Heavy Ion Engine Heavy Ion Engine Light Treads Light Treads Light Treads Improved Aluminum Leg Makeshift Leg Disposable Heat Sink Medium Storage Unit Huge Storage Unit Subdweller Optics Makeshift Armor Plating Scrap Shield EM Shotgun EM Shotgun Particle Gun Particle Gun Particle Gun Particle Gun Mini Grenade Launcher Scrap Shield Fragment Scrap Shield Fragment Scrap Shield Fragment Scrap Shield Fragment [Rating: 21] Favorites ----------- Power Heavy Ion Engine Engine Heavy Ion Engine Propulsion Light Treads Treads Light Treads Leg Improved Aluminum Leg Wheel Subdweller Monowheel Utility Huge Storage Unit Device Improved Heat Sink Storage Huge Storage Unit Processor Targeting Computer Protection Makeshift Kinetic Plating Weapon Assault Rifle Energy Gun EM Shotgun Energy Cannon Subdweller Beam Cannon Ballistic Gun Assault Rifle Launcher Mini Grenade Launcher Special Weapon Mining Laser Build | -11 -10 -10 ------- Run | Jun Mat Sub Slots Evolved . | . . . Power . | . . . Propulsion . | . . . Utility . | . . . Weapon . | . . . Parts Attached 40 | . 16 24 Power 4 | . 3 1 Engine 4 | . 3 1 Core . | . . . Reactor . | . . . Propulsion 14 | . 6 8 Treads 6 | . 2 4 Leg 5 | . 4 1 Wheel 3 | . . 3 Hover . | . . . Flight . | . . . Utility 6 | . 4 2 Device 1 | . 1 . Storage 2 | . 2 . Processor 1 | . . 1 Hackware . | . . . Protection 2 | . 1 1 Artifact . | . . . Weapon 16 | . 3 13 Energy Gun 4 | . . 4 Energy Cannon 2 | . . 2 Ballistic Gun 5 | . 2 3 Ballistic Cannon . | . . . Launcher 4 | . 1 3 Special Weapon 1 | . . 1 Impact Weapon . | . . . Slashing Weapon . | . . . Piercing Weapon . | . . . Special Melee Weapon . | . . . Unidentified Prototypes 1 | . 1 . Corrupted Parts 1 | . . 1 System Corruption 5 | . . 5 Parts Lost 5 | . . 5 Power . | . . . Propulsion 2 | . . 2 Utility 1 | . . 1 Weapon 2 | . . 2 Highest Loss Streak 3 | . . 3 To Critical Strikes . | . . . Average Slot Usage (%) 99 | . 99 99 Engine 14 | . 14 14 Treads 18 | . 15 21 Leg 4 | . 12 . Wheel 4 | . . 6 Device 4 | . 11 . Storage 14 | . 14 14 Processor 5 | . . 8 Protection 3 | . 2 4 Energy Gun 3 | . 2 4 Energy Cannon 7 | . . 11 Ballistic Gun 15 | . 25 9 Launcher 1 | . . 2 Naked Turns . | . . . Heaviest Build 107 | 10 92 107 Greatest Support 40 | 20 40 40 Greatest Overweight (x) 5 | . 2 5 Average Overweight (x) 1 | . . 2 Largest Inventory Capacity 25 | . 25 25 Average Capacity 22 | . 17 25 Most Carried 25 | . 18 25 Average Carried 18 | . 13 22 Final Capacity 25 | 8 25 25 Final Carried 22 | 6 18 22 Class Distribution -------------------- 79% | Mutant 20% | Subdweller-Mutant Dominant Class ---------------- Mutant | -10/Materials Mutant | -10/Subcaves Resources | -11 -10 -10 ----------- Run | Jun Mat Sub Matter Collected 1021 | 175 354 492 Remotely . | . . . Salvage Created 872 | . 418 454 Parts 69 | . 35 34 Haulers Intercepted 2 | . 2 . Recyclers Shooed 1 | . 1 . Parts Field Recycled . | . . . Retrieved Matter . | . . . Parts Self-Destructed 7 | . . 7 Prevented . | . . . Kills | -11 -10 -10 ------- Run | Jun Mat Sub Combat Hostiles Destroyed 23 | . 8 15 Guns 7 | . 4 3 Cannons 5 | . . 5 AOE 11 | . 4 7 Classes Destroyed 10 | . 7 3 Worker 2 | . 2 . Hauler 2 | . 2 . Recycler 1 | . 1 . Operator 1 | . 1 . Turret 2 | . . 2 Watcher 2 | . 2 . Swarmer 5 | . 3 2 Grunt 9 | . 5 4 Sentry 1 | . . 1 Subdweller 8 | . . 8 Best Kill Streak 4 | . 3 4 Combat Bots Only 3 | . 3 2 Max Kills in Single Turn 2 | . 2 2 Gunslinging . | . . . Exploded 2 | . 2 2 Melee . | . . . Uniques/NPCs Destroyed . | . . . Combat | -11 -10 -10 -------- Run | Jun Mat Sub Damage Taken 1538 | . 290 1248 Core 276 | . 26 250 Absorbed by Shields . | . . . Redirected to Shielding 5 | . 5 . Ignored by Resistances 12 | . . 12 Core Remaining (%) 100 | 100 . . Volleys Fired 102 | . 42 60 Largest 2 | . 2 2 Hottest 145 | . 60 145 Shots Fired 155 | . 77 78 Gun 97 | . 70 27 Cannon 26 | . . 26 Launcher 32 | . 7 25 Special . | . . . Kinetic 69 | . 58 11 Thermal 40 | . 12 28 Explosive 32 | . 7 25 Electromagnetic 14 | . . 14 Robot Hit Streak 30 | . 6 30 Robot Miss Streak 3 | . 3 3 Penetration Max . | . . . Secondary Targets . | . . . Shots Hit Robots 80 | . 46 34 Core Hits 61 | . 24 37 Critical Kills . | . . . Critical Parts Destroyed . | . . . Critical Strikes . | . . . Melee Attacks . | . . . Impact . | . . . Slashing . | . . . Piercing . | . . . Sneak Attacks . | . . . Combat Hostiles . | . . . Follow-up Attacks . | . . . Damage Inflicted 2509 | . 895 1614 Guns 702 | . 481 221 Cannons 188 | . . 188 Explosions 1610 | . 405 1205 Melee . | . . . Ramming 9 | . 9 . Kinetic 454 | . 391 63 Thermal 293 | . 90 203 Explosive 1610 | . 405 1205 Electromagnetic 143 | . . 143 Impact . | . . . Slashing . | . . . Piercing . | . . . Highest Corruption 6 | . 1 6 Average Corruption 4 | . 1 5 Corruption Purged . | . . . Corruption Blocked . | . . . Effects 63 | . 7 56 Message Errors 17 | . 1 16 Matter Fused 15 | . . 15 Heat Flow Errors 8 | . 1 7 Energy Discharges 4 | . 1 3 Parts Rejected 1 | . . 1 Parts Fused 1 | . . 1 Data Loss (minor) 12 | . 3 9 Data Loss (major) 3 | . 1 2 Alerts 1 | . . 1 Weapon Failures 1 | . . 1 Overload Shots . | . . . Overflow Damage 36 | . 30 6 Projectiles . | . . . Explosions 36 | . 30 6 Melee . | . . . Knockbacks . | . . . Impact . | . . . Kinetic . | . . . Secondary . | . . . Self-Inflicted Damage 186 | . 37 149 Shots 8 | . 1 7 Rammed 1 | . 1 . Targets Rammed 2 | . 2 . Kicked 1 | . 1 . Crushed . | . . . Highest Temperature 292 | . 122 292 Average Temperature 56 | . 32 68 Received Heat Transfer 471 | . 135 336 Effects 1 | . . 1 Interference 1 | . . 1 Siege Activations . | . . . Robots Corrupted . | . . . Combat Hostiles . | . . . Parts Fried 2 | . . 2 Impact Corruptions . | . . . Robots Melted . | . . . Combat Hostiles . | . . . Parts Melted . | . . . Heat Transferred 496 | . 200 296 Parts Sabotaged . | . . . Parts Stolen . | . . . Parts Stripped . | . . . Power Chain Reactions . | . . . Missiles Intercepted . | . . . Alert | -11 -10 -10 ------- Run | Jun Mat Sub Peak Influence 221 | . 221 . Initial . | . . . Average 87 | . 87 . Maximum Alert Level 1 | . 1 . Low Security (%) 81 | . 81 . Level 1 18 | . 18 . Level 2 . | . . . Level 3 . | . . . Level 4 . | . . . Level 5 . | . . . High Security . | . . . Max Security . | . . . Squads Dispatched 1 | . 1 . Investigation 1 | . 1 . Extermination . | . . . Reinforcement . | . . . Assault . | . . . Garrison . | . . . Intercept . | . . . Searches Triggered . | . . . Construction Impeded . | . . . Haulers Reinforced . | . . . Active Scanning Responses . | . . . Cargo Convoy Interrupts . | . . . Stealth | -11 -10 -10 --------- Run | Jun Mat Sub Distress Signals . | . . . Communications Jammed . | . . . Distress Signals . | . . . Times Spotted 65 | . 15 50 Peak Tracking Total 5 | . 5 4 Tactical Retreats 2 | . . 2 Traps | -11 -10 -10 ------- Run | Jun Mat Sub Traps Triggered 4 | . 3 1 Indirectly . | . . . Trap Hack Attempts . | . . . Triggered . | . . . Disarmed . | . . . Reprogrammed . | . . . Reused . | . . . Traps Extracted . | . . . Installed . | . . . Triggered . | . . . Machines | -11 -10 -10 ---------- Run | Jun Mat Sub Machines Disabled 3 | . . 3 Max in Single Turn 1 | . . 1 Machines Repaired . | . . . Machines Sabotaged . | . . . Overloaded Fab Kills . | . . . Hacking | -11 -10 -10 --------- Run | Jun Mat Sub Machines Accessed 8 | . 7 1 Terminals 6 | . 6 . Fabricators . | . . . Repair Stations 1 | . 1 . Recycling Units . | . . . Scanalyzers . | . . . Garrison Access . | . . . Total Hacks 19 | . 15 4 Successful 9 | . 5 4 Failed 10 | . 10 . Catastrophic 3 | . 3 . Database Lockouts . | . . . Manual 13 | . 13 . Terminals 13 | . 13 . Fabricators . | . . . Repair Stations 2 | . 2 . Recycling Units . | . . . Scanalyzers . | . . . Garrison Access . | . . . Terminal Hacks 8 | . 4 4 Record 4 | . . 4 Zone Layout 4 | . 4 . Fabricator Hacks . | . . . Repair Station Hacks 1 | . 1 . Scan Component 1 | . 1 . Recycling Unit Hacks . | . . . Scanalyzer . | . . . Garrison Access Hacks . | . . . Unauthorized Hacks . | . . . Terminals . | . . . Fabricators . | . . . Repair Stations . | . . . Recycling Units . | . . . Scanalyzers . | . . . Garrison Access . | . . . Data Cores Recovered . | . . . Used . | . . . Hacking Detections 5 | . 5 . Full Trace Events . | . . . Feedback Events . | . . . Feedback Blocked . | . . . Robot Schematics Acquired . | . . . Robots Built . | . . . Authchips . | . . . Time . | . . . Total Robot Build Rating . | . . . Part Schematics Acquired . | . . . Parts Built . | . . . Authchips . | . . . Time . | . . . Total Part Build Rating . | . . . Parts Repaired . | . . . Time . | . . . Parts Recycled . | . . . Recycled Matter . | . . . Retrieved Matter . | . . . Retrieved Components . | . . . Parts Scanalyzed . | . . . Part Schematics Acquired . | . . . Parts Damaged . | . . . Bothacking | -11 -10 -10 ------------ Run | Jun Mat Sub Used RIF Installer . | . . . Robots Hacked . | . . . Non-combat . | . . . Combat . | . . . Robot Hacks Applied . | . . . Relay Couplers Released . | . . . Fabnet Peak Effective % . | . . . Robots Rewired . | . . . Allies Hacked . | . . . Hacks Repelled . | . . . Allies | -11 -10 -10 -------- Run | Jun Mat Sub Total Allies . | . . . Largest Group . | . . . Highest-Rated Group . | . . . Highest-Rated Ally . | . . . Total Orders . | . . . Ally Attacks . | . . . Total Damage . | . . . Kills . | . . . Allies Corrupted . | . . . Allies Melted . | . . . Intel | -11 -10 -10 ------- Run | Jun Mat Sub Robot Analysis Total . | . . . Derelict Logs Recovered 2 | . . 2 Drone Launches . | . . . Drone Recoveries . | . . . Exploration | -11 -10 -10 ------------- Run | Jun Mat Sub Turns Passed 3804 | . 1451 2353 Spaces Moved 1618 | 1 673 944 Core . | . . . Treads 683 | . 236 447 Legs 438 | 1 437 . Wheels 497 | . . 497 Hover . | . . . Flight . | . . . Fastest Speed 120 | 120 120 130 Average Speed 212 | 120 190 228 Slowest Speed 560 | 120 320 560 Overloaded Moves . | . . . Propulsion Burnouts . | . . . Robots Hopped . | . . . Cave-ins Triggered 1 | . . 1 Exploration Rate (%) 50 | 1 95 55 Regions Visited 2 Branch Regions 1 Pre-discovered Areas 2 | . . 2 Known Exits Taken . | . . . Unknown Exits Taken 2 | 1 1 . Scrap Searched 6 | . . 6 Spaces Dug 9 | . . 9 Terrain Destroyed 174 | . 60 114 Melee . | . . . Projectile 12 | . . 12 AOE 162 | . 60 102 Terrain Rammed . | . . . Walls Destroyed . | . . . Machines Disabled . | . . . Actions | -11 -10 -10 --------- Run | Jun Mat Sub Total 1838 | . 778 1060 Wait 18 | . 9 9 Move 1616 | . 672 944 Hop . | . . . Pick Up 34 | . 21 13 Fast Attach 12 | . 5 7 Attach 11 | . 3 8 Detach 1 | . . 1 Swap 17 | . 8 9 Drop 25 | . 16 9 Fire 102 | . 42 60 Melee . | . . . Ram . | . . . Kick 1 | . 1 . Crush 1 | . 1 . Escape Stasis . | . . . Rewire . | . . . Trap . | . . . Miscellaneous . | . . . Route ------- -11/Junkyard -10/Materials (discovered 6 exits: [*Mat x3] / [*Min x2] / *Sub) -10/Subcaves (discovered 2 exits: [*Mat] / [*Rec]) History --------- Turn | Location | Event 1 | -11/Junkyard | Discovered new exit (range 0) 1 | -11/Junkyard | Entered Materials 85 | -10/Materials | Discovered new exit (range 12) 295 | -10/Materials | Discovered new exit (range 14) 317 | -10/Materials | Build established: Mutant 473 | -10/Materials | Discovered new exit (range 12) 639 | -10/Materials | Discovered new exit (range 8) 899 | -10/Materials | Discovered new exit (range 16) 1430 | -10/Materials | Discovered new exit (range 7) 1452 | -10/Materials | Entered Subcaves 1559 | -10/Subcaves | Learned location of Zion (-7) 1559 | -10/Subcaves | Met a Zionite searching for "candidates" 1569 | -10/Subcaves | Core integrity fell below 50% 1607 | -10/Subcaves | Lost 3 parts (1u2w) 1700 | -10/Subcaves | Learned Materials machine intel 2373 | -10/Subcaves | Discovered new exit (range 2) 2963 | -10/Subcaves | Core integrity fell below 20% 3088 | -10/Subcaves | Disturbed a concealed Subdweller 3332 | -10/Subcaves | Build established: Subdweller-Mutant 3558 | -10/Subcaves | Visited Clippyterm 3563 | -10/Subcaves | Learned Research machine intel 3707 | -10/Subcaves | Discovered new exit (range 11) 3791 | -10/Subcaves | Ambushed by Subdweller buried in earth 3806 | -10/Subcaves | Crushed by falling debris 3806 | -10/Subcaves | Smashed by cave-in Last Messages --------------- 03707_ EXIT=FOUND 03709_ Machine disabled. 03711_ S-10 Pest destroyed. 03716_ System corrupted: Matter fused (-9). 03716_ Lgt. Ion Engine fries itself beyond repair. 03723_ Flight Unit fries itself beyond repair. 03727_ Autobeam Turret destroyed. 03728_ The unstable cave ceiling collapses. 03735_ E9T7OVD M<=JO&<0SB>OF31J VDV %%PF >LI 03746_ The unstable cave ceiling collapses. 03777_ System corrupted: Component data lost. 03792_ OW-31Q(R): "ARGHSUB!" 03793_ Lgt. Treads destroyed. 03794_ System corrupted: Hvy. Ion Engine rejected. 03799_ OW-31Q(R) destroyed. 03805_ Acquired 57 matter. 03806_ The unstable cave ceiling collapses. 03806_ Crushed by falling debris. 03806_ Sub. Monowheel destroyed. 03806_ System corrupted by crushing effect (+2). Map ----- +----------------------------------------------------+ | ?????????????????????????????????????????????????? | | ?????????????????????????????????????????????????? | | ?????????????????????????????????????????????????? | | ?????????????????????????????????????????????????? | | ?????????????????????????????????????????????????? | | ?????????????????????????????????????????????????? | | ?????????????????????????????????????????????????? | | ?????????????????????????????????????????????????? | | ?????????????????????????????????????????????????? | | ?????????????????????????????????????????????????? | | ?????????????????????????????????????????????????? | | ?????????????????????????????????????????????????? | | ?????????????????????????????????????????????????? | | ?????????????????????????????????????????????????? | | ?????????????????????????????????????????????????? | | ????????????????????????????????????????????????## | | ???????????????????????????????????????????????## | | ??????????????????????????????????????????????## # | | ????????????????????????????????????????????### ## | | ???????????????????????????????????????????## ##? | | ???????????????????????????????????????????# ##?? | | ?????????????????????##???????????#####??### ##??? | | ?????????????????????# #?????????## #### ##???? | | ??????????????????????#!#????###?# ### ###????? | | ???????????????????????#&##### ### #?### ##??????? | | ???????????????????????# @!## # ## ##??###???????? | | ???????????????????????##=*## ## # ##???????????? | | ????????????????????????#&# #### ####????????? | | ???????????????????????# #######?# ###???????? | | ???????????????????????##????????## ##??????? | | ??????????????????????????????????# # #??????? | | ??????????????????????????????????## ####???? | | ???????????????????????????????????### # ###?? | | ???????????????????????????????????#" #?? | | ???????????????????????????????????# #?? | | ???????????????????????????????????# # #?? | | ???????????????????????????????????#" #?? | | ???????????????????????????????????#" # #? | | ???????????????????????????????????#" #? | | ???????????????????????????????????#### < # ##? | | ?????????????????????????????????????## # ##?? | | ??????????????????????????????????????### # ###??? | | ????????????????????????????????????????#####????? | | ?????????????????????????????????????????????????? | | ?????????????????????????????????????????????????? | | ?????????????????????????????????????????????????? | | ?????????????????????????????????????????????????? | | ?????????????????????????????????????????????????? | | ?????????????????????????????????????????????????? | | ?????????????????????????????????????????????????? | +----------------------------------------------------+ Best States ------------- Heat Dissipation 39 Energy Generation 14 Energy Capacity 280 Matter Stores 300 Matter Capacity 300 Sight Range 16 Terrain Scan Density 10 Armor Coverage 100 Resistance: KI 10 Core Shielding 20 Evasion (%) 55 Targeting Accuracy 5 Recoil Reduction 2 Item Schematics ----------------- None Robot Schematics ------------------ None Fabricated ------------ Nothing Alien Tech Used ----------------- None Achievements -------------- None Challenges ------------ None Game ------ Seed VortexBurstBoosters Manual? 0 Play Time 00:23:56 Cumulative 340.1 hours Start 2023.06.22 @ 21:24:57 End 2023.06.22 @ 21:44:37 Sessions 1 Manual Loads 0 Difficulty Rogue Special Mode None Game No. 366 Rogue 366 Adventurer 0 Explorer 0 Win Type - Total 28 Types 16/3/3/1/2/0/3/0/0 Lore% 82 Gallery% 85 Achievement% 82 Wizard Run 0 Options --------- ASCII 0 Keyboard 0 Movement Arrows Keybinds 0 Fullscreen 2 Font 24/Smallcaps Map View 76x50 Tactical HUD 1 Map Filters NONE Filters NONE Steam 1 RUN: e36b9f68-f1eb-4889-b1d7-b1c182085f66